bitfinex-derivatives/quotes_ETHF0:USTF0_20250213
["timestamp","ask_amount","ask_price","bid_price","bid_amount"]
[1739422030401,3.93979,2731.9,2731.7,1.26832]
[1739422030597,0.73201,2731.8,2731.7,0.5363]
[1739422032604,3.2078,2731.9,2731.8,0.73201]
[1739422032810,3.2078,2732.2,2731.7,0.5363]
[1739422033113,3.2078,2732.2,2732.0,3.89329239]
[1739422033403,3.2078,2732.2,2732.1,1.6664]
[1739422034313,3.9397,2732.2,2732.1,1.6664]
[1739422035112,3.2078,2732.2,2732.1,1.6664]
[1739422035410,3.2078,2732.2,2732.1,2.39832]
[1739422035807,3.2078,2732.2,2732.1,1.6664]
[1739422036203,3.2078,2732.2,2732.1,2.39832]
[1739422036705,3.2078,2732.5,2732.3,0.73186]
[1739422036910,3.2078,2732.5,2732.4,0.73184]
[1739422046217,3.93963,2732.5,2732.3,5.47821239]
[1739422046417,3.2078,2732.5,2732.3,5.47821239]
[1739422047014,3.7674,2732.5,2732.3,5.47821239]
[1739422047215,4.49922,2732.5,2732.3,5.47821239]
[1739422047617,3.7674,2732.5,2732.4,0.73184]
[1739422048221,4.49922,2732.5,2732.3,5.47821239]
[1739422048421,4.3395,2732.5,2732.4,0.73184]
[1739422048720,3.2078,2732.5,2732.4,0.73184]
[1739422050416,3.2078,2732.8,2732.3,4.74635239]
[1739422050614,3.2078,2732.8,2732.7,0.73175]
[1739422051024,3.2078,2732.8,2732.7,2.47725]
[1739422051825,3.2078,2733.1,2732.7,3.3305]
[1739422052021,3.2078,2733.1,2733.0,3.89303239]
[1739422054425,3.2078,2733.1,2733.0,3.16135239]
[1739422054928,3.2078,2733.1,2733.0,3.89303239]
[1739422056619,0.00548938,2733.3,2733.0,3.16135239]
[1739422056824,0.00548938,2733.3,2733.2,0.73163]
[1739422057321,0.00548938,2733.3,2733.2,42.67073]
[1739422057529,3.2078,2733.4,2733.2,41.9391]
[1739422057721,3.2078,2733.4,2733.3,3.89295239]
[1739422058225,3.2078,2733.7,2733.6,0.73152]
[1739422058419,3.2078,2733.7,2733.6,3.89287239]
[1739422058924,3.2078,2733.7,2733.6,4.46837239]
[1739422061031,3.2078,2733.7,2733.4,2.31557]
[1739422061332,3.93932,2733.7,2733.4,2.31556]
[1739422061631,3.2078,2733.7,2733.5,0.73155]
[1739422062032,4.294,2733.7,2733.5,0.73154]
[1739422062433,5.0255,2733.7,2733.5,0.73154]
[1739422062633,4.294,2733.7,2733.5,0.73154]
[1739422063135,4.294,2733.7,2733.4,0.5591]
[1739422063331,0.73155,2733.5,2733.3,4.74535239]
[1739422063527,0.73155,2733.5,2733.3,3.89295239]
[1739422063929,0.73153,2733.6,2733.4,0.73157]
[1739422064233,4.8299,2733.7,2733.5,0.73153]
[1739422064435,4.8299,2733.7,2733.3,3.16135239]
[1739422064639,4.8299,2733.7,2733.5,0.73155]
[1739422064939,5.5614,2733.7,2733.3,3.16135239]
[1739422065132,0.73161,2733.3,2733.0,3.16135239]
[1739422065328,0.73161,2733.3,2733.1,0.73166]
[1739422065533,1.1273,2733.2,2733.1,0.73166]
[1739422066032,0.73153,2733.6,2733.3,0.73158]
[1739422066236,1.1273,2733.6,2733.3,3.16135239]
[1739422066430,1.85884,2733.6,2733.4,1.29928]
[1739422066838,1.85884,2733.6,2733.4,0.5677]
[1739422067142,1.1273,2733.6,2733.3,3.16135239]
[1739422067335,0.73158,2733.4,2733.3,3.16135239]
[1739422067537,1.1273,2733.6,2733.1,3.49184]
[1739422067738,0.7316,2733.4,2733.2,0.73163]
[1739422069535,0.7316,2733.4,2733.2,0.73162]
[1739422069725,0.7316,2733.4,2733.1,2.7602]
[1739422069930,1.1273,2733.6,2733.1,2.7602]
[1739422070131,1.1273,2733.6,2733.3,3.16135239]
[1739422070530,0.73155,2733.5,2733.4,0.5468]
[1739422070838,1.1273,2733.6,2733.4,0.5468]
[1739422071137,0.73155,2733.5,2733.4,0.5468]
[1739422071337,1.1273,2733.6,2733.3,3.16135239]
[1739422071539,0.73158,2733.4,2733.3,3.16135239]
[1739422071938,0.73158,2733.4,2733.3,3.89295239]
[1739422072139,0.73158,2733.4,2733.3,3.16135239]
[1739422072740,0.73158,2733.4,2733.3,3.89295239]
[1739422073140,0.73158,2733.4,2733.3,3.16135239]
[1739422073843,1.1273,2733.6,2733.1,2.7602]
[1739422074038,1.1273,2733.6,2733.1,0.588]
[1739422074243,3.2078,2733.4,2733.0,3.70815239]
[1739422074435,0.73166,2733.1,2733.0,3.70815239]
[1739422074642,0.73168,2733.0,2732.9,40.8]
[1739422074832,0.73171,2732.9,2732.8,3.21328938]
[1739422075239,0.73171,2732.9,2732.8,44.01328938]
[1739422075744,0.73171,2732.9,2732.8,40.80548938]
[1739422076541,0.73171,2732.9,2732.8,0.00548938]
[1739422077740,3.2078,2733.1,2732.8,0.00548938]
[1739422078048,3.2078,2733.4,2733.0,3.16135239]
[1739422078250,0.73165,2733.2,2733.1,0.581]
[1739422078438,0.73165,2733.2,2733.1,1.7278]
[1739422078639,0.73162,2733.3,2733.1,1.7278]
[1739422078844,3.7785,2733.4,2733.1,1.7278]
[1739422079037,0.73163,2733.2,2733.1,1.7278]
[1739422080847,3.2078,2733.4,2733.1,1.7278]
[1739422081149,3.93938,2733.4,2733.3,3.16135239]
[1739422081351,0.73163,2733.2,2733.1,0.581]
[1739422082046,0.73168,2733.0,2732.9,1.584]
[1739422082441,0.73171,2732.9,2732.8,0.59278938]
[1739422082943,0.73171,2732.9,2732.8,0.00548938]
[1739422085242,0.7319,2732.2,2732.1,0.5394]
[1739422085548,0.7319,2732.2,2732.1,40.8]
[1739422086052,1.2787,2732.2,2732.1,40.8]
[1739422086243,0.73195,2732.0,2731.9,0.00548938]
[1739422086445,3.93975,2732.0,2731.9,0.00548938]
[1739422087443,0.73214,2731.3,2731.2,3.16135239]
[1739422087845,0.73214,2731.3,2731.2,43.96135239]
[1739422092153,3.2078,2731.6,2731.2,43.96135239]
[1739422092454,3.93986,2731.6,2731.5,3.16135239]
[1739422092854,0.73211,2731.4,2731.3,0.5869]
[1739422093050,3.2078,2731.6,2731.0,0.57498938]
[1739422093349,0.73219,2731.1,2731.0,0.57498938]
[1739422093551,0.73219,2731.1,2731.0,41.37498938]
[1739422093753,0.73219,2731.1,2731.0,0.00548938]
[1739422096555,0.79389013,2731.1,2731.0,0.00548938]
[1739422097151,0.79389013,2731.1,2731.0,9.38e-06]
[1739422097152,6.79389013,2731.1,2731.0,9.38e-06]
[1739422097548,0.35840527,2731.1,2729.4,3.16135239]
[1739422097750,6.36915239,2730.0,2729.1,3.16135239]
[1739422097949,3.2078,2730.1,2729.4,3.16135239]
[1739422098155,3.2078,2730.1,2729.7,3.16135239]
[1739422098563,0.73251,2729.9,2729.8,0.5867]
[1739422098955,3.2078,2730.1,2729.7,3.16135239]
[1739422099154,3.2078,2730.1,2729.6,0.00548938]
[1739422099155,0.73257,2729.7,2729.6,0.00548938]
[1739422099356,4.75135239,2729.7,2728.8,6.36915239]
[1739422099659,3.2078,2729.2,2728.8,6.36915239]
[1739422099959,0.73276,2729.0,2728.9,40.8]
[1739422100155,3.2078,2729.2,2728.6,0.5818]
[1739422100347,0.73284,2728.7,2728.6,0.5818]
[1739422100549,0.73284,2728.7,2728.6,0.58728938]
[1739422100952,0.73284,2728.7,2728.6,0.00548938]
[1739422101354,0.73302,2728.0,2727.9,3.16135239]
[1739422101553,4.75335239,2728.8,2727.9,3.16135239]
[1739422101554,3.2078,2728.3,2727.9,3.16135239]
[1739422101763,3.2078,2728.6,2727.9,3.16135239]
[1739422102060,0.73299,2728.2,2727.9,3.16135239]
[1739422102363,0.73301,2728.1,2727.9,3.16135239]
[1739422102661,3.21328938,2728.3,2727.9,3.16135239]
[1739422102857,0.73302,2728.0,2727.9,3.16135239]
[1739422103363,0.733,2728.1,2727.9,3.16135239]
[1739422103564,0.73302,2728.0,2727.9,3.16135239]
[1739422103859,3.21328938,2728.3,2727.9,3.16135239]
[1739422104060,0.73302,2728.0,2727.9,3.16135239]
[1739422104264,0.73308,2727.8,2727.6,3.16135239]
[1739422104458,3.2078,2728.0,2727.6,3.16135239]
[1739422104858,3.2078,2728.0,2727.9,3.16135239]
[1739422105062,3.2078,2728.0,2727.9,3.15531122]
[1739422105360,0.73312,2727.7,2727.6,3.16135239]
[1739422105763,3.2078,2728.0,2727.6,43.96135239]
[1739422106065,0.73311,2727.7,2727.6,43.96135239]
[1739422106365,0.73311,2727.7,2727.3,3.71635239]
[1739422106366,0.73319,2727.4,2727.3,3.71635239]
[1739422106663,3.2078,2727.7,2727.3,3.71635239]
[1739422106863,3.2078,2727.7,2727.4,40.8]
[1739422107064,0.73319,2727.4,2727.3,3.16135239]
[1739422107365,0.73319,2727.4,2726.5,3.2078]
[1739422107366,7.97315239,2727.4,2726.5,3.2078]
[1739422107569,3.2078,2727.0,2726.5,3.2078]
[1739422107867,0.73336,2726.8,2726.5,3.2078]
[1739422108062,3.2078,2727.0,2726.5,3.2078]
[1739422108254,3.2078,2727.0,2726.7,3.16135239]
[1739422108457,0.00549954,2726.9,2726.8,3.94115]
[1739422108657,3.2078,2727.6,2727.3,0.7332]
[1739422108860,3.2078,2727.6,2727.4,3.89453239]
[1739422109056,3.2078,2727.9,2727.5,41.53316]
[1739422109257,3.94086,2727.9,2727.5,41.53316]
[1739422109459,3.2078,2727.9,2727.7,3.16135239]
[1739422109654,3.2078,2727.9,2727.6,3.97460896]
[1739422109864,0.00549954,2728.1,2727.6,3.97460896]
[1739422110066,0.00549954,2728.1,2727.7,0.5462]
[1739422110265,0.00549954,2728.1,2727.9,3.97460896]
[1739422110461,0.00549954,2728.1,2728.0,0.73302]
[1739422110659,0.00549954,2728.1,2727.9,3.97460896]
[1739422110865,0.00549954,2728.1,2727.8,2.1953]
[1739422110866,0.73305,2727.9,2727.8,1.611]
[1739422111067,0.73308,2727.8,2727.7,1.1283]
[1739422111263,3.94087,2727.9,2727.7,1.1283]
[1739422111566,0.73303,2728.0,2727.7,1.1283]
[1739422111773,3.2078,2728.0,2727.7,1.1283]
[1739422112071,0.73305,2728.0,2727.7,1.1283]
[1739422112263,0.73305,2727.9,2727.7,1.1283]
[1739422112767,0.73304,2728.0,2727.7,1.1283]
[1739422113375,0.73307,2727.9,2727.7,1.1283]
[1739422113670,0.00549954,2728.1,2727.7,1.1283]
[1739422113878,0.73302,2728.0,2727.7,1.1283]
[1739422114071,3.2078,2728.0,2727.6,0.00549954]
[1739422114266,3.94091,2727.7,2727.6,0.00549954]
[1739422116472,9.2078,2727.7,2726.9,0.5807]
[1739422116671,0.73326,2727.2,2726.9,1.31402]
[1739422117076,3.2078,2727.3,2726.9,0.5807]
[1739422117261,0.73326,2727.2,2726.9,1.31401]
[1739422117467,3.2078,2727.3,2726.9,1.31401]
[1739422117468,3.2078,2727.3,2726.9,0.5807]
[1739422117662,3.2078,2727.9,2727.0,3.97460896]
[1739422117963,3.2078,2727.9,2727.6,3.97460896]
[1739422118167,0.00549954,2728.1,2727.9,0.73304]
[1739422118772,0.00549954,2728.1,2727.7,0.5807]
[1739422118973,0.00549954,2728.1,2727.7,3.7885]
[1739422119274,0.00549954,2728.1,2728.0,0.73302]
[1739422119477,0.00549954,2728.1,2727.7,0.5807]
[1739422119675,0.73305,2727.9,2727.7,0.5807]
[1739422120379,3.2078,2728.0,2727.7,0.5807]
[1739422120682,3.2078,2728.0,2727.9,0.73305]
[1739422120976,0.00549954,2728.1,2728.0,0.73302]
[1739422121570,0.00549954,2728.1,2727.9,3.97460896]
[1739422122076,0.00549954,2728.1,2727.8,0.73306]
[1739422123079,0.00549954,2728.1,2727.8,0.73305]
[1739422123279,0.00549954,2728.1,2727.7,2.2057]
[1739422123475,0.00549954,2728.1,2727.9,0.73305]
[1739422123878,0.00549954,2728.1,2727.7,2.2057]
[1739422124075,0.00549954,2728.1,2727.8,0.73305]
[1739422124279,0.00549954,2728.1,2727.7,2.2057]
[1739422124582,0.73850954,2728.1,2727.7,2.2057]
[1739422124781,0.00549954,2728.1,2727.7,2.93879]
[1739422124982,0.73851954,2728.1,2727.7,2.93879]
[1739422125477,0.00549954,2728.1,2727.8,0.73305]
[1739422125682,0.00549954,2728.1,2727.7,2.2057]
[1739422125882,0.73304,2728.0,2727.7,1.31379]
[1739422126082,3.94084,2728.0,2727.5,1.623]
[1739422126282,3.94084,2728.0,2727.5,2.2129]
[1739422126577,3.2078,2728.0,2727.9,0.73305]
[1739422127193,0.00549954,2728.1,2728.0,0.73302]
[1739422127486,3.7627,2729.0,2728.2,3.97460896]
[1739422127687,0.73279,2728.9,2728.6,0.73284]
[1739422127890,3.7627,2729.0,2728.5,0.73287]
[1739422128183,3.7627,2729.0,2728.2,7.18240896]
[1739422128382,3.2078,2728.7,2728.5,0.00549954]
[1739422128579,0.73286,2728.6,2728.5,0.00549954]
[1739422128781,1.31456,2728.6,2728.5,0.00549954]
[1739422131686,0.5817,2728.6,2728.5,0.73838954]
[1739422131879,4.32529954,2729.0,2728.5,0.00549954]
[1739422132081,3.76819954,2729.0,2728.5,0.00549954]
[1739422132383,3.76819954,2729.0,2728.7,0.73283]
[1739422132384,0.7328,2728.9,2728.7,0.73283]
[1739422132579,3.76819954,2729.0,2728.5,0.00549954]
[1739422132781,3.21329954,2729.0,2728.9,0.73278]
[1739422133793,0.00549954,2729.0,2728.9,0.73278]
[1739422133989,0.00549954,2729.0,2728.9,2.90968]
[1739422134185,3.24207711,2729.5,2728.9,2.1769]
[1739422134383,0.73267,2729.4,2728.9,2.1769]
[1739422134786,0.7327,2729.3,2729.0,0.73274]
[1739422135591,0.00549954,2729.4,2728.9,2.1769]
[1739422135895,0.73269,2729.3,2729.0,0.73275]
[1739422136098,0.73815954,2729.4,2729.1,0.73272]
[1739422136392,0.73815954,2729.4,2728.9,2.1769]
[1739422136393,0.73269,2729.3,2729.0,0.73274]
[1739422136593,0.00549954,2729.4,2728.9,2.1769]
[1739422136788,0.73272,2729.2,2728.9,2.90968]
[1739422136993,0.73269,2729.3,2728.9,2.1769]
[1739422137194,0.73269,2729.3,2729.0,0.73275]
[1739422137504,0.57269954,2729.4,2728.9,0.5469]
[1739422137797,3.2078,2729.2,2728.7,1.633]
[1739422137998,0.7328,2728.9,2728.7,1.633]
[1739422138293,0.73277,2729.0,2728.7,2.36583]
[1739422138686,0.5729,2729.1,2728.7,2.36583]
[1739422138687,0.73278,2728.9,2728.7,1.633]
[1739422138891,0.73281,2728.8,2728.7,1.633]
[1739422139091,0.73284,2728.7,2728.5,5.57818954]
[1739422139297,3.2078,2728.9,2728.5,0.00549954]
[1739422139593,0.73286,2728.6,2728.5,0.00549954]
[1739422139993,3.94066,2728.6,2728.5,0.00549954]
[1739422140290,0.73303,2728.0,2727.8,3.94087]
[1739422140495,9.2078,2728.6,2727.8,3.94087]
[1739422140496,0.73298,2728.2,2727.8,3.2078]
[1739422140696,3.2078,2728.6,2727.9,0.73305]
[1739422140896,0.733,2728.1,2727.9,0.73304]
[1739422141091,0.73304,2728.0,2727.8,3.2078]
[1739422141294,3.2078,2728.6,2727.8,3.2078]
[1739422141599,0.73298,2728.2,2728.0,0.73302]
[1739422142092,3.2078,2728.6,2727.8,3.2078]
[1739422142286,0.0616421,2728.5,2727.8,3.2078]
[1739422142687,0.73301,2728.1,2727.9,0.73305]
[1739422142891,0.733,2728.2,2727.9,0.73305]
[1739422143193,0.73303,2728.0,2727.8,3.2078]
[1739422143393,0.73302,2728.1,2727.8,3.2078]
[1739422143599,0.5623,2728.5,2727.9,3.97460896]
[1739422143801,3.2078,2728.6,2728.1,3.2078]
[1739422143998,0.73284,2728.7,2728.4,0.73291]
[1739422144196,2.1693,2728.8,2728.5,40.8]
[1739422144197,0.5353,2728.8,2728.5,40.8]
[1739422144503,0.73282,2728.8,2728.5,41.53287]
[1739422144703,0.73284,2728.7,2728.5,40.8]
[1739422144904,3.7684,2729.0,2728.5,40.8]
[1739422145101,0.73274,2729.1,2728.8,0.7328]
[1739422145303,3.7427,2729.3,2728.6,3.2078]
[1739422145697,3.7427,2729.3,2728.8,0.73281]
[1739422146000,0.5349,2729.3,2728.9,0.73276]
[1739422146204,0.73269,2729.3,2729.0,0.5796]
[1739422146501,0.00549954,2729.4,2729.0,0.5796]
[1739422146801,0.73284,2728.7,2728.6,3.2078]
[1739422147198,0.7328,2728.9,2728.6,3.2078]
[1739422147395,0.73284,2728.7,2728.6,3.2078]
[1739422147802,3.2078,2729.3,2728.6,3.2078]
[1739422147803,1.128,2729.1,2728.6,3.2078]
[1739422147996,0.73283,2728.8,2728.6,3.2078]
[1739422148308,1.128,2729.1,2728.6,3.2078]
[1739422148501,0.72857699,2729.0,2728.7,0.73284]
[1739422148698,1.86075,2729.1,2728.7,0.73282]
[1739422149105,1.64749954,2729.4,2728.6,3.2078]
[1739422149303,0.73269,2729.3,2728.6,3.2078]
[1739422149506,0.00549954,2729.4,2728.6,3.2078]
[1739422149703,0.00549954,2729.4,2729.0,0.73275]
[1739422149905,0.00549954,2729.4,2728.6,3.2078]
[1739422149906,0.00549954,2729.4,2728.8,5.61760896]
[1739422150113,0.00549954,2729.4,2728.9,3.7675]
[1739422150306,0.73269,2729.3,2728.9,4.50026]
[1739422150507,0.73815954,2729.4,2729.0,0.5913]
[1739422150806,0.73815954,2729.4,2729.0,1.32403]
[1739422151013,0.00549954,2729.4,2729.0,0.5913]
[1739422151309,0.73273,2729.2,2729.0,0.5913]
[1739422151509,0.73273,2729.1,2729.0,0.5913]
[1739422152312,0.00549954,2729.4,2729.0,0.5913]
[1739422152915,0.73272,2729.2,2729.0,0.5913]
[1739422153207,0.00549954,2729.4,2729.0,0.5913]
[1739422153607,0.00549954,2729.4,2729.2,0.73269]
[1739422153807,0.00549954,2729.4,2729.0,0.5913]
[1739422154006,0.73269,2729.3,2729.0,1.32954954]
[1739422154205,0.00549954,2729.4,2729.0,0.59679954]
[1739422154407,0.73272,2729.2,2729.0,0.59679954]
[1739422154605,0.00549954,2729.4,2729.0,1.32954954]
[1739422154801,0.00549954,2729.4,2729.0,0.59679954]
[1739422155006,0.73269,2729.3,2729.0,1.32953954]
[1739422155414,0.73815954,2729.4,2729.0,0.59679954]
[1739422155614,0.00549954,2729.4,2729.2,0.73269]
[1739422155810,0.00549954,2729.4,2729.3,0.73268]
[1739422156910,0.00549954,2729.4,2729.1,3.97460896]
[1739422157211,0.73268,2729.3,2729.1,4.70733896]
[1739422157509,0.00549954,2729.4,2729.1,3.97460896]
[1739422157712,0.00549954,2729.4,2729.2,0.73269]
[1739422158013,0.00549954,2729.4,2729.3,0.73268]
[1739422160011,0.7325,2730.0,2729.7,0.73254]
[1739422160204,3.2078,2730.3,2729.7,1.643]
[1739422160205,0.73254,2729.8,2729.7,1.643]
[1739422161515,0.73254,2729.8,2729.5,1.30671]
[1739422161721,0.00549954,2730.0,2729.5,0.5741]
[1739422161918,0.73252,2729.9,2729.7,0.73257]
[1739422162216,0.73252,2729.9,2729.5,0.5741]
[1739422162217,0.00549954,2730.0,2729.5,0.5741]
[1739422162624,0.73798954,2730.0,2729.7,0.73255]
[1739422162916,0.73252,2729.9,2729.6,0.7326]
[1739422163118,0.00549954,2730.0,2729.8,0.73253]
[1739422163521,0.73799954,2730.0,2729.8,0.73254]
[1739422163718,0.00549954,2730.0,2729.8,0.73254]
[1739422164115,0.73799954,2730.0,2729.7,0.73255]
[1739422164311,0.73799954,2730.0,2729.5,0.5741]
[1739422164312,0.00549954,2730.0,2729.5,0.5741]
[1739422164511,0.00549954,2730.0,2729.9,0.73251]
[1739422165720,0.5559,2730.7,2729.9,3.2078]
[1739422166019,1.0928,2730.7,2730.1,3.97460896]
[1739422166209,1.0928,2730.7,2730.0,0.5796]
[1739422166414,0.73245,2730.2,2730.0,0.5796]
[1739422166617,1.0928,2730.7,2730.0,0.5796]
[1739422166918,0.73237,2730.5,2730.0,0.5796]
[1739422167122,0.73783954,2730.6,2730.3,0.73239]
[1739422167314,0.00549954,2730.6,2730.4,0.73237]
[1739422167515,0.00549954,2730.6,2730.0,0.5796]
[1739422167516,0.00549954,2730.6,2730.1,3.97460896]
[1739422167721,0.73784954,2730.6,2730.3,0.73239]
[1739422168324,0.00549954,2730.6,2730.2,0.5389]
[1739422168527,0.00549954,2730.6,2730.5,0.73235]
[1739422168721,0.00549954,2730.6,2730.2,0.5389]
[1739422169023,0.00549954,2730.6,2730.4,0.73236]
[1739422169225,0.00549954,2730.6,2730.2,0.5389]
[1739422169818,0.73238,2730.4,2730.2,1.27133]
[1739422170023,0.73241,2730.3,2730.2,0.5389]
[1739422170522,0.73783954,2730.6,2730.4,0.73238]
[1739422170717,0.00549954,2730.6,2730.4,0.73236]
[1739422170920,0.00549954,2730.6,2730.5,0.73235]
[1739422172228,0.73783954,2730.6,2730.2,3.7467]
[1739422172422,0.73783954,2730.6,2730.3,0.73241]
[1739422172624,0.73237,2730.5,2730.2,0.5389]
[1739422172828,0.73237,2730.5,2730.3,0.73241]
[1739422173422,0.73237,2730.5,2730.2,1.27131]
[1739422173617,0.00549954,2730.6,2730.3,0.7324]
[1739422174026,0.00549954,2730.6,2730.2,0.5389]
[1739422174225,0.73236,2730.5,2730.3,0.7324]
[1739422174628,0.73236,2730.5,2730.2,0.5389]
[1739422174824,0.00549954,2730.6,2730.1,3.16596805]
[1739422175030,0.564,2730.5,2730.1,3.16596805]
[1739422175232,0.73243,2730.2,2730.1,3.16596805]
[1739422175933,0.73242,2730.3,2730.1,3.89841805]
[1739422176131,0.73242,2730.3,2730.1,3.89840805]
[1739422176432,0.564,2730.5,2730.1,3.89840805]
[1739422176937,0.73242,2730.3,2730.1,3.89840805]
[1739422177133,1.83096,2730.4,2729.9,3.2078]
[1739422177441,3.2078,2730.2,2729.3,3.16596805]
[1739422177629,0.7326,2729.6,2729.3,0.73266]
[1739422177935,1.1414,2730.1,2729.3,3.16596805]
[1739422178135,0.7325,2730.0,2729.7,0.73256]
[1739422178338,0.5559,2730.1,2729.6,3.16596805]
[1739422178538,0.7325,2730.0,2729.7,0.73255]
[1739422179035,1.28837,2730.1,2729.6,3.16596805]
[1739422179341,0.5559,2730.1,2730.0,0.73249]
[1739422180041,4.3573,2730.5,2729.9,0.5423]
[1739422180235,4.9225,2730.5,2729.9,3.70826805]
[1739422180441,5.06936,2730.5,2730.2,0.73242]
[1739422180844,1.1292,2730.5,2730.2,0.73241]
[1739422181140,1.86156,2730.5,2730.2,0.73241]
[1739422181339,1.1292,2730.5,2730.0,0.5561]
[1739422181539,1.1292,2730.5,2730.3,0.7324]
[1739422181742,1.86156,2730.5,2730.2,0.73242]
[1739422182244,0.73241,2730.3,2730.1,3.2078]
[1739422182437,0.73241,2730.3,2730.0,1.28857]
[1739422183035,1.1292,2730.5,2729.9,3.89846805]
[1739422183340,0.73244,2730.2,2729.9,4.46566805]
[1739422183647,1.1292,2730.5,2729.9,0.5672]
[1739422183839,0.73249,2730.0,2729.9,0.5672]
[1739422184344,1.1292,2730.5,2729.8,3.2078]
[1739422184732,1.1292,2730.5,2729.9,0.73251]
[1739422184733,0.73246,2730.2,2729.9,0.73251]
[1739422184939,0.73246,2730.2,2729.9,0.7325]
[1739422185342,1.1292,2730.5,2729.8,3.2078]
[1739422185646,0.73245,2730.2,2729.9,0.7325]
[1739422186244,1.1292,2730.5,2729.8,3.2078]
[1739422186545,0.73244,2730.2,2729.9,0.73249]
[1739422186746,1.1292,2730.5,2729.9,0.73249]
[1739422186944,1.1292,2730.5,2729.8,3.2078]
[1739422187345,0.73243,2730.3,2730.0,0.73249]
[1739422188149,0.73245,2730.2,2729.9,0.73251]
[1739422188338,6.37376805,2730.3,2729.8,3.2078]
[1739422188651,0.73251,2729.9,2729.8,3.2078]
[1739422188848,0.5889,2730.2,2729.8,3.2078]
[1739422189149,0.73251,2730.0,2729.8,3.2078]
[1739422190143,0.73251,2730.0,2729.7,1.29975]
[1739422190447,0.73248,2730.1,2729.8,0.73253]
[1739422190646,0.5889,2730.2,2729.8,0.73253]
[1739422190846,0.73246,2730.1,2729.8,0.73253]
[1739422191349,0.7325,2730.0,2729.7,0.5672]
[1739422191649,3.2078,2730.3,2729.9,0.7325]
[1739422191861,0.73245,2730.2,2730.0,0.73248]
[1739422192151,0.73247,2730.1,2729.8,3.2078]
[1739422192447,0.73249,2730.0,2729.8,3.94032]
[1739422192752,3.2078,2730.3,2729.8,3.94032]
[1739422192951,0.73254,2729.8,2729.7,0.5672]
[1739422193153,0.73254,2729.8,2729.7,2.2022]
[1739422193350,0.73254,2729.8,2729.7,0.5672]
[1739422194046,0.5876,2729.9,2729.5,3.2078]
[1739422194254,3.7954,2729.9,2729.2,3.2078]
[1739422194549,0.73268,2729.3,2729.2,3.2078]
[1739422195752,0.73267,2729.4,2729.2,3.9405]
[1739422196352,0.42225125,2729.8,2729.2,3.9405]
[1739422196554,0.42225125,2729.8,2729.2,3.2078]
[1739422196757,0.42225125,2729.8,2729.4,0.73263]
[1739422197053,0.73258,2729.7,2729.2,3.2078]
[1739422197247,3.2078,2730.2,2729.6,3.16596805]
[1739422197453,0.73252,2729.9,2729.7,1.84296]
[1739422197653,0.73252,2729.9,2729.7,1.1104]
[1739422198158,0.73251,2730.0,2729.7,1.84296]
[1739422198352,0.4215545,2730.4,2729.7,1.1104]
[1739422198546,0.73253,2729.9,2729.7,1.1104]
[1739422198751,0.73254,2729.8,2729.7,1.1104]
[1739422199150,0.73254,2729.8,2729.7,0.5742]
[1739422199353,1.83103,2730.3,2729.7,0.5742]
[1739422199659,6.12444,2730.5,2729.7,0.5742]
[1739422199951,0.0617047,2730.4,2729.7,1.117]
[1739422200154,0.73251,2730.0,2729.7,2.42926]
[1739422200455,0.73253,2729.9,2729.7,1.6967]
[1739422200662,4.2935,2730.5,2729.7,1.6967]
[1739422200856,0.73251,2730.0,2729.7,2.42926]
[1739422201861,0.73253,2729.9,2729.7,2.42927]
[1739422202361,0.73251,2730.0,2729.7,2.42927]
[1739422202564,1.83096,2730.4,2729.7,2.42927]
[1739422202753,4.2935,2730.5,2729.7,1.6967]
[1739422202954,4.2935,2730.5,2729.8,3.2078]
[1739422203260,4.2935,2730.5,2730.0,0.73248]
[1739422203759,0.73244,2730.2,2729.8,3.2078]
[1739422203960,0.73244,2730.2,2729.9,0.73249]
[1739422204556,4.2935,2730.5,2729.8,3.2078]
[1739422204760,6.12444,2730.5,2729.8,3.2078]
[1739422205064,4.2935,2730.5,2729.8,3.2078]
[1739422205558,4.2935,2730.5,2730.0,0.73248]
[1739422205760,0.73248,2730.1,2729.9,0.7325]
[1739422206458,4.2935,2730.5,2729.8,3.2078]
[1739422206665,0.73242,2730.3,2730.0,0.73247]
[1739422206865,0.73242,2730.3,2730.0,2.36347]
[1739422207366,0.73246,2730.2,2730.0,1.631]
[1739422207567,0.73246,2730.2,2730.0,2.36349]
[1739422207858,0.73246,2730.2,2730.0,0.73248]
[1739422208063,0.73248,2730.1,2729.8,4.8388]
[1739422208256,0.73248,2730.1,2729.8,5.57133]
[1739422208969,0.73248,2730.1,2729.9,0.7325]
[1739422209461,4.2935,2730.5,2729.8,4.8388]
[1739422209671,4.2935,2730.5,2729.9,3.16596805]
[1739422209857,1.0857,2730.5,2730.1,3.2078]
[1739422210062,0.73244,2730.2,2729.8,4.8388]
[1739422210269,1.0857,2730.5,2729.9,0.73251]
[1739422210458,0.73247,2730.1,2729.9,0.73251]
[1739422211358,0.73245,2730.2,2729.9,0.73251]
[1739422211560,1.50795268,2730.5,2729.9,0.73251]
[1739422211759,0.73245,2730.2,2729.8,4.8388]
[1739422211959,1.0857,2730.5,2729.8,4.8388]
[1739422212168,0.73241,2730.3,2730.1,0.73245]
[1739422212557,0.73238,2730.4,2730.2,0.73243]
[1739422212765,0.73242,2730.3,2730.1,0.73245]
[1739422213171,0.73245,2730.2,2729.9,0.73249]
[1739422213364,0.73245,2730.2,2729.8,4.8388]
[1739422213564,0.73245,2730.2,2729.9,0.73249]
[1739422213764,0.73245,2730.2,2729.8,4.8388]
[1739422213963,0.7324,2730.4,2729.8,4.8388]
[1739422214567,4.2935,2730.5,2730.1,0.73244]
[1739422214874,4.2935,2730.5,2729.9,0.7325]
[1739422215078,0.73245,2730.2,2729.9,0.7325]
[1739422215564,0.73245,2730.2,2729.8,4.8388]